bitfinex/quotes_BTCUSD_20250114
["timestamp","ask_amount","ask_price","bid_price","bid_amount"]
[1736837891950,0.00179173,95057.0,95056.0,5.4279169]
[1736837892289,0.00179173,95057.0,95056.0,5.3661519]
[1736837892463,0.00179173,95057.0,95056.0,5.42370236]
[1736837892672,0.00179173,95057.0,95056.0,5.42570236]
[1736837893883,0.00179173,95057.0,95056.0,5.42370236]
[1736837894292,0.00179173,95057.0,95056.0,5.42770236]
[1736837894441,0.00179173,95057.0,95056.0,5.42370236]
[1736837894794,0.00179173,95057.0,95056.0,5.42870236]
[1736837895159,0.00179173,95057.0,95056.0,5.42770236]
[1736837895380,0.00179173,95057.0,95056.0,5.42870236]
[1736837895597,0.00179173,95057.0,95056.0,5.38403136]
[1736837896131,0.00179173,95057.0,95056.0,5.22204236]
[1736837896281,0.00179173,95057.0,95056.0,4.53203036]
[1736837896449,0.00179173,95057.0,95056.0,4.05196336]
[1736837896641,0.00179173,95057.0,95056.0,3.91593036]
[1736837896890,0.00179173,95057.0,95056.0,3.91493036]
[1736837897085,0.00179173,95057.0,95056.0,3.91593036]
[1736837897626,0.00179173,95057.0,95056.0,3.91493036]
[1736837897944,0.00179173,95057.0,95056.0,3.91793036]
[1736837898165,0.00179173,95057.0,95056.0,3.91393036]
[1736837898355,0.00179173,95057.0,95056.0,3.91793036]
[1736837898576,0.00179173,95057.0,95056.0,3.91393036]
[1736837898930,0.00179173,95057.0,95056.0,3.92193036]
[1736837899313,0.00179173,95057.0,95056.0,3.69808936]
[1736837900582,0.00179173,95057.0,95056.0,3.64575336]
[1736837900806,0.00179173,95057.0,95056.0,3.5872029]
[1736837901128,0.00179173,95057.0,95056.0,3.64575336]
[1736837901544,0.00179173,95057.0,95056.0,3.5872029]
[1736837901738,0.00179173,95057.0,95056.0,3.64575336]
[1736837904207,0.00179173,95057.0,95056.0,3.64664559]
[1736837908492,0.00179173,95057.0,95056.0,3.58809513]
[1736837908695,0.00179173,95057.0,95056.0,3.58695423]
[1736837909473,0.00179173,95057.0,95056.0,3.64637271]
[1736837909678,0.00179173,95057.0,95056.0,3.58782225]
[1736837909965,0.00179173,95057.0,95056.0,3.64637271]
[1736837910116,0.00179173,95057.0,95056.0,3.58782225]
[1736837910439,0.00179173,95057.0,95056.0,3.64049271]
[1736837910593,0.00179173,95057.0,95056.0,3.58782225]
[1736837914755,0.00179173,95057.0,95056.0,3.64637271]
[1736837916944,0.00179173,95057.0,95056.0,3.66937271]
[1736837917553,0.00179173,95057.0,95056.0,2.12828071]
[1736837917749,0.00179173,95057.0,95056.0,4.53837425]
[1736837917954,0.00179173,95057.0,95056.0,3.94095925]
[1736837920817,0.00179173,95057.0,95056.0,4.02250971]
[1736837922153,0.00179173,95057.0,95056.0,4.01150971]
[1736837922367,0.00179173,95057.0,95056.0,4.01350971]
[1736837922651,0.00179173,95057.0,95056.0,4.02250971]
[1736837923029,0.00179173,95057.0,95056.0,4.02050971]
[1736837923239,0.00179173,95057.0,95056.0,4.02350971]
[1736837923796,0.00179173,95057.0,95056.0,4.01450971]
[1736837924220,0.00179173,95057.0,95056.0,4.02350971]
[1736837924435,0.00179173,95057.0,95056.0,4.01450971]
[1736837924640,0.00179173,95057.0,95056.0,4.01150971]
[1736837924839,0.00179173,95057.0,95056.0,4.02050971]
[1736837925157,0.00179173,95057.0,95056.0,4.01450971]
[1736837925363,0.00179173,95057.0,95056.0,4.02250971]
[1736837925574,0.00179173,95057.0,95056.0,4.01150971]
[1736837925771,0.00179173,95057.0,95056.0,4.08940971]
[1736837925979,0.00072569,95060.0,95056.0,4.08940971]
[1736837925980,0.00021377,95067.0,95066.0,0.30855046]
[1736837926183,0.00042721,95068.0,95067.0,0.33155046]
[1736837926399,0.049,95092.0,95080.0,0.15]
[1736837926672,0.00134098,95081.0,95080.0,3.65936984]
[1736837926904,0.00134098,95081.0,95080.0,5.19215568]
[1736837927080,0.00134098,95081.0,95080.0,5.20200235]
[1736837927320,0.00134098,95081.0,95080.0,5.26055281]
[1736837928179,0.00134098,95081.0,95080.0,5.26155281]
[1736837928765,0.00134098,95081.0,95080.0,5.26655281]
[1736837929182,0.049,95092.0,95084.0,0.15]
[1736837929386,0.00054645,95089.0,95088.0,0.25980384]
[1736837929590,0.00054645,95089.0,95088.0,3.65348984]
[1736837929992,0.00054645,95089.0,95088.0,3.65680108]
[1736837930194,0.00054645,95089.0,95088.0,3.86713208]
[1736837930604,0.00054645,95089.0,95088.0,3.87697875]
[1736837931208,0.00054645,95089.0,95088.0,3.87897875]
[1736837931410,0.00054645,95089.0,95088.0,5.37897875]
[1736837932213,0.00054645,95089.0,95088.0,5.37909631]
[1736837933149,0.00054645,95089.0,95088.0,5.38109631]
[1736837934014,0.00054645,95089.0,95088.0,4.44869631]
[1736837934209,0.00054645,95089.0,95088.0,4.31369631]
[1736837934433,0.00054645,95089.0,95088.0,4.28429031]
[1736837934616,0.00054645,95089.0,95088.0,4.29129031]
[1736837937264,0.00139895,95089.0,95088.0,13.29129031]
[1736837939284,0.00139895,95089.0,95088.0,10.99441031]
[1736837939507,0.00139895,95089.0,95088.0,14.38809631]
[1736837940031,0.00139895,95089.0,95088.0,14.39397631]
[1736837943272,0.07685155,95100.0,95095.0,0.15]
[1736837943549,0.07685155,95100.0,95097.0,0.10980384]
[1736837943848,0.07685155,95100.0,95099.0,0.210307]
[1736837943991,0.07685155,95100.0,95099.0,2.22891484]
[1736837944192,0.07685155,95100.0,95099.0,3.72891384]
[1736837944619,0.07685155,95100.0,95099.0,3.73876051]
[1736837945486,0.07685155,95100.0,95099.0,3.74076051]
[1736837946464,0.07685155,95100.0,95099.0,3.75134583]
[1736837947106,0.07685155,95100.0,95099.0,3.75347407]
[1736837947327,0.07685155,95100.0,95099.0,3.54645398]
[1736837948727,0.0008528,95108.0,95100.0,0.210304]
[1736837948728,0.081,95107.0,95100.0,0.210304]
[1736837949002,0.081,95107.0,95101.0,0.10980384]
[1736837949186,0.081,95107.0,95102.0,3.393686]
[1736837949392,0.081,95107.0,95106.0,1.5]
[1736837949676,0.081,95107.0,95106.0,5.00348984]
[1736837950000,0.081,95107.0,95106.0,5.01333651]
[1736837950176,0.082,95107.0,95106.0,5.01333651]
[1736837950559,0.081,95107.0,95106.0,5.01333651]
[1736837950925,0.082,95107.0,95106.0,5.01660794]
[1736837951537,0.082,95107.0,95106.0,5.02248794]
[1736837952227,0.08187344,95107.0,95106.0,5.02248794]
[1736837952430,0.001,95107.0,95106.0,5.02248794]
[1736837953635,0.0008528,95108.0,95106.0,5.02248794]
[1736837953784,0.0008528,95108.0,95107.0,3.50348984]
[1736837954536,0.0008528,95108.0,95107.0,3.50675906]
[1736837954946,0.0008528,95108.0,95107.0,3.51660573]
[1736837955152,0.0008528,95108.0,95107.0,1.87227873]
[1736837956886,0.0018528,95108.0,95107.0,1.87227873]
[1736837957069,0.0018528,95108.0,95107.0,1.77000273]
[1736837957290,0.0018528,95108.0,95107.0,1.74894373]
[1736837958372,0.0018528,95108.0,95107.0,1.67783973]
[1736837958997,0.0018528,95108.0,95107.0,3.17783973]
[1736837959353,0.0018528,95108.0,95107.0,3.13814273]
[1736837961751,0.0018528,95108.0,95107.0,3.13993214]
[1736837962110,0.0018528,95108.0,95107.0,3.14206636]
[1736837963351,0.0018528,95108.0,95107.0,3.07230136]
[1736837964397,0.0018528,95108.0,95107.0,3.22230136]
[1736837965813,0.0008528,95108.0,95107.0,3.22230136]
[1736837965990,0.0018528,95108.0,95107.0,3.22230136]
[1736837966612,0.0008528,95108.0,95107.0,3.22230136]
[1736837967934,0.0008528,95108.0,95107.0,3.22430136]
[1736837969276,0.0008528,95108.0,95107.0,1.77884336]
[1736837969476,0.0008528,95108.0,95107.0,3.46169936]
[1736837969776,0.0008528,95108.0,95107.0,3.43708836]
[1736837974512,0.0008528,95108.0,95107.0,3.44296836]
[1736837979690,0.0008528,95108.0,95107.0,3.47572413]
[1736837983574,0.0008528,95108.0,95107.0,3.47372413]
[1736837983877,0.0008528,95108.0,95107.0,3.47572413]
[1736837984703,0.0008528,95108.0,95107.0,3.47372413]
[1736837985588,0.0018528,95108.0,95107.0,3.47372413]
[1736837986141,0.0008528,95108.0,95107.0,3.47372413]
[1736837987537,0.0008528,95108.0,95107.0,3.47572413]
[1736837991452,0.0008528,95108.0,95107.0,1.81747913]
[1736837992280,0.0008528,95108.0,95107.0,5.21116513]
[1736837997463,0.0008528,95108.0,95107.0,4.95732113]
[1736837997988,0.0008528,95108.0,95107.0,4.70986713]
[1736837998390,0.0008528,95108.0,95107.0,4.73286713]
[1736837998625,0.0008528,95108.0,95107.0,4.91951759]
[1736837998938,0.0008527,95126.0,95108.0,0.23155046]
[1736837999159,0.0008527,95126.0,95125.0,0.360249]
[1736837999160,0.0009991,95126.0,95125.0,0.360249]
[1736837999362,0.0009991,95126.0,95125.0,0.50279537]
[1736837999588,0.0009991,95126.0,95125.0,2.00279537]
[1736838000223,0.0009991,95126.0,95125.0,2.01264204]
[1736838000436,0.0009991,95126.0,95125.0,5.40632804]
[1736838001023,0.0009991,95126.0,95125.0,5.41132804]
[1736838001234,0.0009991,95126.0,95125.0,5.6334785]
[1736838001473,0.3256,95169.0,95125.0,5.6334785]
[1736838001474,0.0465,95167.0,95152.0,0.36019]
[1736838001637,0.0465,95167.0,95152.0,0.47587384]
[1736838001857,0.0465,95167.0,95152.0,0.25980384]
[1736838002002,0.12510204,95153.0,95152.0,1.61568384]
[1736838002613,0.17160204,95153.0,95152.0,1.61568384]
[1736838003219,0.17160204,95153.0,95134.0,0.210228]
[1736838003220,0.04144954,95145.0,95134.0,0.210228]
[1736838003419,0.210223,95137.0,95135.0,0.29795384]
[1736838003642,0.08794954,95136.0,95135.0,0.10980384]
[1736838003843,0.08794954,95136.0,95135.0,0.11568384]
[1736838004054,0.08794954,95136.0,95135.0,0.30794484]
[1736838004261,0.08794954,95136.0,95135.0,0.47792784]
[1736838004455,0.17074954,95136.0,95135.0,0.10980384]
[1736838004657,0.17074954,95136.0,95135.0,0.11768384]
[1736838004882,0.17074954,95136.0,95135.0,0.11568384]
[1736838005087,0.17074954,95136.0,95135.0,0.10980384]
[1736838005256,0.17074954,95136.0,95135.0,0.11568384]
[1736838005466,0.17074954,95136.0,95135.0,0.11768384]
[1736838006037,0.1293,95136.0,95135.0,0.22922584]
[1736838006681,0.17074954,95136.0,95135.0,0.11568384]
[1736838006872,0.17174954,95136.0,95135.0,0.00588]
[1736838006983,0.04144954,95127.0,95126.0,1.5]
[1736838007191,0.04144954,95127.0,95126.0,1.61568384]
[1736838007427,0.04144954,95127.0,95126.0,1.75090984]
[1736838008379,0.04144954,95127.0,95126.0,1.61568384]
[1736838009650,0.05793141,95127.0,95126.0,1.61568384]
[1736838009855,0.01648187,95127.0,95126.0,1.91722084]
[1736838010116,0.01748187,95127.0,95126.0,1.91722084]
[1736838010287,0.05893141,95127.0,95126.0,1.91722084]
[1736838010534,0.01648187,95127.0,95126.0,1.91722084]
[1736838010738,0.001,95127.0,95126.0,2.06722084]
[1736838011539,0.04144954,95139.0,95127.0,0.15]
[1736838011868,0.04144954,95139.0,95133.0,0.21023]
[1736838012068,0.04144954,95139.0,95134.0,0.75933784]
[1736838012227,0.04144954,95139.0,95135.0,0.279301]
[1736838012429,0.04144954,95139.0,95136.0,1.60980384]
[1736838012633,0.04144954,95139.0,95137.0,0.321372]
[1736838012837,0.04144954,95141.0,95138.0,0.10980384]
[1736838013062,0.04144954,95139.0,95138.0,0.10980384]
[1736838013276,0.04144954,95141.0,95139.0,0.962057]
[1736838013556,0.04144954,95141.0,95140.0,0.10980384]
[1736838013757,0.04144954,95141.0,95140.0,1.14577684]
[1736838013965,0.04144954,95141.0,95140.0,1.35331984]
[1736838014167,0.04144954,95141.0,95140.0,1.13212384]
[1736838014532,0.04144954,95141.0,95140.0,0.89166284]
[1736838014881,0.04244954,95141.0,95140.0,0.89166284]
[1736838015252,0.04244954,95141.0,95140.0,0.58582084]
[1736838015455,0.05892857,95141.0,95140.0,0.45579884]
[1736838016918,0.01747903,95141.0,95140.0,0.45579884]
[1736838017226,0.01747903,95141.0,95140.0,1.95579884]
[1736838017384,0.01747903,95141.0,95140.0,1.95899512]
[1736838017573,0.05892857,95141.0,95140.0,1.96091115]
[1736838017776,0.05892857,95141.0,95140.0,1.62079615]
[1736838019606,0.05892857,95141.0,95140.0,1.72899415]
[1736838019777,0.05892857,95141.0,95140.0,1.72899515]
[1736838019924,0.05892857,95141.0,95140.0,1.62079615]
[1736838020827,0.05892857,95141.0,95140.0,2.64626415]
[1736838021026,0.01747903,95141.0,95140.0,2.64626415]
[1736838021426,0.01747903,95141.0,95140.0,1.14626415]
[1736838021623,0.001,95141.0,95140.0,1.14038415]
[1736838021833,0.001,95141.0,95140.0,1.29626415]
[1736838022050,0.001,95141.0,95140.0,2.79626415]
[1736838022261,0.001,95141.0,95140.0,2.80680968]
[1736838022697,0.0008525,95153.0,95149.0,0.210195]
[1736838022903,0.0008525,95153.0,95151.0,0.210192]
[1736838023132,0.0008525,95153.0,95152.0,0.78465584]
[1736838023329,0.0008525,95153.0,95152.0,0.72437484]
[1736838023541,0.0008525,95153.0,95152.0,2.22437484]
[1736838024699,0.0008525,95153.0,95152.0,1.84898584]
[1736838025099,0.04230204,95153.0,95152.0,1.61297361]
[1736838025246,0.04230204,95153.0,95152.0,0.11297361]
[1736838026241,0.04330204,95153.0,95152.0,0.11297361]
[1736838026460,0.05978021,95153.0,95152.0,0.11297361]
[1736838026636,0.05878021,95153.0,95152.0,0.11297361]
[1736838026837,0.05978021,95153.0,95152.0,0.11297361]
[1736838027137,0.01833067,95153.0,95152.0,0.11297361]
[1736838027572,0.01833067,95153.0,95152.0,1.61297361]
[1736838027774,0.01833067,95153.0,95152.0,3.38470561]
[1736838027976,0.01833067,95153.0,95152.0,2.93718261]
[1736838028195,0.01733067,95153.0,95152.0,2.93718261]
[1736838029013,0.01733067,95153.0,95152.0,2.32409861]
[1736838029214,0.01733067,95153.0,95152.0,1.61297361]
[1736838029449,0.01833067,95153.0,95152.0,1.72163261]
[1736838029654,0.26996721,95153.0,95152.0,0.11297361]
[1736838030061,0.27096721,95153.0,95152.0,0.11297361]
[1736838030263,0.26996721,95153.0,95152.0,0.11297361]
[1736838030674,0.27096721,95153.0,95152.0,0.11297361]
[1736838030875,0.26996721,95153.0,95152.0,0.11592137]
[1736838031122,0.27096721,95153.0,95152.0,0.11592137]
[1736838031322,0.06078021,95153.0,95152.0,0.11592137]
[1736838031730,0.06078021,95153.0,95152.0,0.01199753]
[1736838032150,0.04430204,95153.0,95152.0,0.00588]
[1736838032579,0.04230204,95153.0,95152.0,0.263067]
[1736838032781,0.04330204,95153.0,95152.0,0.263067]
[1736838032996,0.04330204,95153.0,95152.0,0.26623677]
[1736838033396,0.04430204,95153.0,95152.0,0.26918374]
[1736838033756,0.04230204,95153.0,95152.0,0.26918374]
[1736838033959,0.04330204,95153.0,95152.0,0.26918374]
[1736838034453,0.04330204,95153.0,95152.0,0.37898758]
[1736838035674,0.04430204,95153.0,95152.0,1.87898758]
[1736838035990,0.04230204,95153.0,95152.0,1.87898758]
[1736838036660,0.04330204,95153.0,95152.0,1.87898758]
[1736838036885,0.04330204,95153.0,95152.0,0.37898758]
[1736838037094,0.04330204,95153.0,95152.0,0.28004758]
[1736838037432,0.04230204,95153.0,95152.0,1.78004758]
[1736838038722,0.04330204,95153.0,95152.0,1.78004758]
[1736838039149,0.04230204,95153.0,95152.0,1.78004758]
[1736838039354,0.04330204,95153.0,95152.0,1.78004758]
[1736838039705,0.04330204,95153.0,95152.0,1.62180058]
[1736838039903,0.04330204,95153.0,95152.0,2.13234158]
[1736838040307,0.04330204,95153.0,95152.0,1.98412958]
[1736838042087,0.0018525,95153.0,95152.0,1.98412958]
[1736838043281,0.0008525,95153.0,95152.0,1.98412958]
[1736838043447,0.0018525,95153.0,95152.0,1.98412958]
[1736838043901,0.0008525,95153.0,95152.0,1.98412958]
[1736838045131,0.01833013,95153.0,95152.0,1.98412958]
[1736838045337,0.01733013,95153.0,95152.0,1.98412958]
[1736838046192,0.01833013,95153.0,95152.0,1.98412958]
[1736838046388,0.01833013,95153.0,95152.0,2.34431958]
[1736838046601,0.0008525,95153.0,95152.0,2.34431958]
[1736838046802,0.0018525,95153.0,95152.0,2.34431958]
[1736838048328,0.0008525,95153.0,95152.0,2.34431958]
[1736838051079,0.01732889,95153.0,95152.0,2.34431958]
[1736838052221,0.0008525,95153.0,95152.0,2.34431958]
[1736838054950,0.0008525,95153.0,95152.0,2.34143958]
[1736838055127,0.0008525,95153.0,95152.0,2.34731958]
[1736838060449,0.01732794,95153.0,95152.0,2.34731958]
[1736838060852,0.0008525,95153.0,95152.0,2.34731958]
[1736838067052,0.01732911,95153.0,95152.0,2.34731958]
[1736838067256,0.0008525,95153.0,95152.0,2.34731958]
[1736838067679,0.0008525,95153.0,95152.0,2.37999313]
[1736838068276,0.0008525,95153.0,95152.0,2.34731958]
[1736838068530,0.0008525,95153.0,95152.0,2.34431958]
[1736838068895,0.0008525,95153.0,95152.0,2.34731958]
[1736838069769,0.0008525,95153.0,95152.0,2.37699316]
[1736838070169,0.01732901,95153.0,95152.0,2.37699316]
[1736838070427,0.01732901,95153.0,95152.0,2.37799316]
[1736838070633,0.01732901,95153.0,95152.0,2.45954362]
[1736838070846,0.01732901,95153.0,95152.0,2.53674362]
[1736838071082,0.0008525,95153.0,95152.0,2.53974362]
[1736838071283,0.0008525,95153.0,95152.0,2.17341462]
[1736838071691,0.0008525,95153.0,95152.0,2.29231462]
[1736838071919,0.0008525,95153.0,95152.0,5.56710062]
[1736838072125,0.0008525,95153.0,95152.0,5.56910062]
[1736838072423,0.0008525,95153.0,95152.0,5.62480062]
[1736838072654,0.0008525,95153.0,95152.0,5.61580062]
[1736838072859,0.0008525,95153.0,95152.0,5.62480062]
[1736838073467,0.0008525,95153.0,95152.0,5.62280062]
[1736838073687,0.0008525,95153.0,95152.0,5.62480062]
[1736838074219,0.0008525,95153.0,95152.0,5.62280062]
[1736838074424,0.0008525,95153.0,95152.0,5.61680062]
[1736838074778,0.0008525,95153.0,95152.0,5.51423362]
[1736838074923,0.0008525,95153.0,95152.0,4.99602662]
[1736838075128,0.0008525,95153.0,95152.0,4.95904362]
[1736838075921,0.0008525,95153.0,95152.0,4.96804362]
[1736838076538,0.0008525,95153.0,95152.0,4.90361316]
[1736838076814,0.0008525,95153.0,95152.0,3.61847116]
[1736838077010,0.0008525,95153.0,95152.0,3.20990716]
[1736838077318,0.0008525,95153.0,95152.0,3.15372216]
[1736838077744,0.0008525,95153.0,95152.0,3.15172216]
[1736838077893,0.0008525,95153.0,95152.0,3.15372216]
[1736838078104,0.0008525,95153.0,95152.0,3.22052216]
[1736838078264,0.0008525,95153.0,95152.0,3.22952216]
[1736838078676,0.0008525,95153.0,95152.0,3.22052216]
[1736838078882,0.0008525,95153.0,95152.0,3.22852216]
[1736838079085,0.00072598,95153.0,95152.0,3.22852216]
[1736838079494,0.00072598,95153.0,95152.0,3.15272216]
[1736838079741,0.01720173,95153.0,95152.0,2.99684216]
[1736838079990,0.01720173,95153.0,95152.0,1.73372458]
[1736838080369,0.01720173,95153.0,95152.0,1.74713858]
[1736838080581,0.01720173,95153.0,95152.0,1.74712658]
[1736838080781,0.00072598,95153.0,95152.0,1.62180058]
[1736838080976,0.00072598,95153.0,95152.0,2.13488358]
[1736838082041,0.00072598,95153.0,95152.0,2.12900358]
[1736838082358,0.00072598,95153.0,95152.0,2.13488358]
[1736838084297,0.00072598,95153.0,95152.0,2.13188358]
[1736838084500,0.00072598,95153.0,95152.0,1.83122158]
[1736838084837,0.00072598,95153.0,95152.0,1.72612658]
[1736838085026,0.00072598,95153.0,95152.0,1.62280058]
[1736838085203,0.00072598,95153.0,95152.0,1.62780058]
[1736838085405,0.00072598,95153.0,95152.0,1.62680058]
[1736838085604,0.00072598,95153.0,95152.0,1.62180058]
[1736838085806,0.04217552,95153.0,95152.0,1.62180058]
[1736838086008,0.06343803,95153.0,95152.0,1.62180058]
[1736838086456,0.07991507,95153.0,95152.0,1.62180058]
[1736838086661,0.18583803,95153.0,95152.0,1.51199674]
[1736838088259,0.16457552,95153.0,95152.0,1.51199674]
[1736838089931,0.16457552,95153.0,95152.0,2.21075274]
[1736838090335,0.16457552,95153.0,95152.0,1.86889374]
[1736838090487,0.18105404,95153.0,95152.0,1.62220974]
[1736838090691,0.16457552,95153.0,95152.0,1.62220974]
[1736838090888,0.16457552,95153.0,95152.0,1.62332274]
[1736838091712,0.16457552,95153.0,95152.0,1.51199674]
[1736838093324,0.16457552,95153.0,95152.0,1.62180058]
[1736838093523,0.16457552,95153.0,95152.0,1.62077324]
[1736838096334,0.18105406,95153.0,95152.0,1.62077324]
[1736838097753,0.18105406,95153.0,95152.0,1.5109694]
[1736838097983,0.39124106,95153.0,95152.0,0.0109694]
[1736838098172,0.18105406,95153.0,95152.0,0.0109694]
[1736838098401,0.04144954,95139.0,95138.0,1.5]
[1736838098618,0.04144954,95139.0,95138.0,1.61568384]
[1736838099222,0.05792919,95139.0,95138.0,1.61568384]
[1736838099427,0.14092919,95139.0,95138.0,1.5]
[1736838099636,0.19072919,95139.0,95138.0,1.5]
[1736838100060,0.05792919,95139.0,95138.0,1.60980384]
[1736838100262,0.05792919,95139.0,95138.0,2.28294784]
[1736838100432,0.05792919,95139.0,95138.0,2.16090184]
[1736838101074,0.01847965,95139.0,95138.0,2.16090184]
[1736838101277,0.01847965,95139.0,95138.0,2.16410254]
[1736838101450,0.05992919,95139.0,95138.0,2.12599554]
[1736838101683,0.06092919,95139.0,95138.0,1.94421554]
[1736838101829,0.05992919,95139.0,95138.0,1.89988454]
[1736838102230,0.06392919,95139.0,95138.0,1.89988454]
[1736838102574,0.04744954,95139.0,95138.0,0.39988454]
[1736838102857,0.06393004,95139.0,95138.0,0.39988454]
[1736838103014,0.06393004,95139.0,95138.0,1.89988454]
[1736838103567,0.06393004,95139.0,95138.0,1.80545358]
[1736838104173,0.06393004,95139.0,95138.0,1.62067458]
[1736838104378,0.14693004,95139.0,95138.0,0.00499074]
[1736838104551,0.14693004,95139.0,95138.0,0.01087074]
[1736838104757,0.14693004,95139.0,95138.0,0.00767004]
[1736838104959,0.14693004,95139.0,95138.0,0.00179004]
[1736838105196,0.18024954,95139.0,95138.0,0.00179004]
[1736838107983,0.20113809,95139.0,95138.0,0.00179004]
[1736838108199,0.30113809,95139.0,95138.0,0.00179004]
[1736838109049,0.29513809,95139.0,95138.0,0.00179004]
[1736838109421,0.29813809,95139.0,95138.0,0.00279004]
[1736838109636,0.30013809,95139.0,95138.0,0.00279004]
[1736838109845,0.31662077,95139.0,95138.0,0.00279004]
[1736838110712,0.30013809,95139.0,95138.0,0.00279004]
[1736838111600,0.40013809,95139.0,95138.0,0.00279004]
[1736838112681,0.72533809,95139.0,95138.0,0.00279004]
[1736838116044,0.85814193,95139.0,95138.0,0.00279004]
[1736838116378,0.85162525,95139.0,95138.0,0.00279004]
[1736838116581,0.74182141,95139.0,95138.0,0.00279004]
[1736838117991,0.87462525,95139.0,95138.0,0.00279004]
[1736838120300,0.74182141,95139.0,95138.0,0.00279004]
[1736838121105,0.54182141,95139.0,95138.0,0.00279004]
[1736838122041,0.52533809,95139.0,95138.0,0.00279004]
[1736838131500,0.04644954,95139.0,95138.0,0.00279004]
[1736838132302,0.04644954,95139.0,95138.0,0.11442003]
[1736838133258,0.04344954,95139.0,95138.0,0.11342003]
[1736838133458,0.05044954,95139.0,95138.0,0.11442003]
[1736838133659,0.04344954,95139.0,95138.0,0.11342003]
[1736838134116,0.04144954,95139.0,95138.0,0.11342003]
[1736838134642,0.06193026,95139.0,95138.0,0.11342003]
[1736838135041,0.05793026,95139.0,95138.0,0.11342003]
[1736838135250,0.06693026,95139.0,95138.0,0.19172003]
[1736838135552,0.04344954,95139.0,95138.0,0.19072003]
[1736838135936,0.04644954,95139.0,95138.0,1.69072003]
[1736838139906,0.06293026,95139.0,95138.0,2.27392703]
[1736838140687,0.04644954,95139.0,95138.0,2.27392703]
[1736838141080,0.04644954,95139.0,95138.0,2.17157003]
[1736838141321,0.04644954,95139.0,95138.0,2.09427003]
[1736838141626,0.04644954,95139.0,95138.0,1.86238203]
[1736838143764,0.04644954,95139.0,95138.0,1.86826203]
[1736838143943,0.04644954,95139.0,95138.0,2.07848203]
[1736838144327,0.04644954,95139.0,95138.0,2.05321603]
[1736838144772,0.04644954,95139.0,95138.0,0.55321603]
[1736838144952,0.06293007,95139.0,95138.0,0.55321603]
[1736838145354,0.06293007,95139.0,95138.0,2.05321603]
[1736838145761,0.06293007,95139.0,95138.0,2.04733603]
[1736838145959,0.06293007,95139.0,95138.0,1.95201503]
[1736838146187,0.06293007,95139.0,95138.0,1.82952003]
[1736838147320,0.06293007,95139.0,95138.0,1.95102503]
[1736838147864,0.04644954,95139.0,95138.0,1.95102503]
[1736838148228,0.04644954,95139.0,95138.0,0.45102503]
[1736838148431,0.003,95139.0,95138.0,0.45102503]
[1736838148644,0.04144954,95142.0,95139.0,0.210218]
[1736838148846,0.04144954,95146.0,95145.0,0.210205]
[1736838149050,0.04144954,95148.0,95145.0,0.32183825]
[1736838149277,0.04144954,95148.0,95147.0,0.0826]
[1736838149495,0.04144954,95148.0,95147.0,1.05230349]
[1736838150136,0.04144954,95148.0,95147.0,2.55230349]
[1736838150335,0.04444954,95148.0,95147.0,2.55230349]
[1736838150749,0.003,95148.0,95147.0,2.60200349]
[1736838150988,0.003,95148.0,95147.0,2.75200349]
[1736838151195,0.005,95148.0,95147.0,2.75200349]
[1736838151365,0.005,95148.0,95147.0,2.76866144]
[1736838151824,0.04144954,95159.0,95152.0,0.36019]
[1736838151938,0.04144954,95159.0,95152.0,1.76531684]
[1736838152137,0.04144954,95159.0,95152.0,1.76714599]
[1736838152541,0.04144954,95159.0,95152.0,3.26714599]
[1736838153386,0.04144954,95159.0,95152.0,3.27114599]
[1736838154544,0.04144954,95159.0,95152.0,3.27214599]
[1736838155354,0.01720339,95153.0,95152.0,3.27214599]
[1736838157157,0.01720339,95153.0,95152.0,3.52647699]
[1736838157358,0.01720339,95153.0,95152.0,3.51763099]
[1736838160498,0.01720339,95153.0,95152.0,3.17722999]
[1736838160733,0.01720339,95153.0,95152.0,2.11004899]
[1736838160979,0.01720339,95153.0,95152.0,2.10412899]
[1736838161208,0.01720339,95153.0,95152.0,2.11004899]
[1736838161833,0.00072598,95153.0,95152.0,2.11004899]
[1736838168427,0.0172044,95153.0,95152.0,2.11004899]
[1736838172133,0.00072598,95153.0,95152.0,2.11004899]
[1736838173792,0.00072598,95153.0,95152.0,2.11183966]
[1736838174513,0.00072598,95153.0,95152.0,2.10591966]
[1736838174841,0.00072598,95153.0,95152.0,2.11183966]
[1736838178740,0.0172042,95153.0,95152.0,2.11183966]
[1736838179795,0.0172042,95153.0,95152.0,2.10591966]
[1736838180125,0.0172042,95153.0,95152.0,2.11191966]
[1736838181758,0.0172042,95153.0,95152.0,1.83461366]
[1736838182082,0.00072598,95153.0,95152.0,1.83461366]
[1736838185017,0.00072598,95153.0,95152.0,2.06371366]
[1736838185232,0.00072598,95153.0,95152.0,2.14414266]
[1736838185939,0.00072598,95153.0,95152.0,2.14731243]
[1736838187614,0.03449521,95165.0,95162.0,0.420333]
[1736838187816,0.03464161,95165.0,95163.0,0.10980384]
[1736838188022,0.03464161,95165.0,95163.0,0.11476079]
[1736838188815,0.03464161,95165.0,95164.0,0.210163]
[1736838188984,0.03564161,95165.0,95164.0,0.31996684]
[1736838189397,0.03664161,95165.0,95164.0,0.31996684]
[1736838189622,0.05311842,95165.0,95164.0,0.3231101]
[1736838189821,0.05211842,95165.0,95164.0,0.3231101]
[1736838190032,0.05111842,95165.0,95164.0,0.3231101]
[1736838190203,0.05211842,95165.0,95164.0,0.3231101]
[1736838190408,0.05311842,95165.0,95164.0,0.3231101]
[1736838190751,0.05311842,95165.0,95164.0,0.3291101]
[1736838191424,0.03664161,95165.0,95164.0,0.3291101]
[1736838192339,0.03664161,95165.0,95164.0,0.33947333]
[1736838194254,0.03664161,95165.0,95164.0,0.3231101]
[1736838194462,0.03664161,95165.0,95164.0,0.3291101]
[1736838194669,0.05311902,95165.0,95164.0,0.3291101]
[1736838195243,0.05311902,95165.0,95164.0,0.3231101]
[1736838195447,0.05311902,95165.0,95164.0,0.3291101]
[1736838195652,0.05311902,95165.0,95164.0,0.3231101]
[1736838195857,0.05311902,95165.0,95164.0,0.3291101]
[1736838196079,0.05311902,95165.0,95164.0,0.33091877]
[1736838197463,0.05397172,95165.0,95164.0,0.33091877]
[1736838197666,0.05397172,95165.0,95164.0,1.83091877]
[1736838200621,0.06496011,95165.0,95164.0,1.83091877]
[1736838202143,0.0484827,95165.0,95164.0,1.83091877]
[1736838203541,0.0952827,95165.0,95164.0,1.50495193]
[1736838203749,0.1770827,95165.0,95164.0,0.01095193]
[1736838204558,0.17695621,95165.0,95164.0,0.01095193]
[1736838205318,0.1934342,95165.0,95164.0,0.01095193]
[1736838205786,0.17695621,95165.0,95164.0,0.01095193]
[1736838207617,0.17695621,95165.0,95164.0,1.51095193]
[1736838209063,0.17695621,95165.0,95164.0,1.51274239]
[1736838210587,0.17695621,95165.0,95164.0,0.01274239]
[1736838211386,0.38711721,95165.0,95164.0,0.00674239]
[1736838211820,0.38711721,95165.0,95164.0,0.00179046]
[1736838212431,0.40259611,95165.0,95164.0,0.00179046]
[1736838212600,0.40159611,95165.0,95164.0,0.00179046]
[1736838213031,0.41059611,95165.0,95164.0,0.00279046]